fUSD/lending_fUSD_20250402
["ID","MTS","AMOUNT","RATE_DAILY","PERIOD"]
[357043855,1743622168160,-33192.0324988,0.00015,2]
[357043856,1743622173109,-9761.46107783,0.00015,2]
[357043861,1743622185699,-171.04350908,0.000149,2]
[357043862,1743622203218,-8130.14784698,0.000149,2]
[357043864,1743622203277,-255.5839897,0.000149,2]
[357043867,1743622203961,-300.0,0.000149,2]
[357043879,1743622231561,-468.3,0.000149,2]
[357043880,1743622231618,-275.76238221,0.000149,2]
[357043881,1743622231631,-431.75487487,0.000149,2]
[357043882,1743622231641,-142.0910199,0.0001495,2]
[357043883,1743622231670,-7.9089801,0.0001495,2]
[357043884,1743622231679,-265.50234938,0.00014973,2]
[357043885,1743622231725,-234.49765062,0.00014973,2]
[357043886,1743622231735,-269.58719324,0.00014973,2]
[357043887,1743622231841,-230.41280676,0.00014973,2]
[357043888,1743622231851,-984.50720629,0.00015,2]
[357043889,1743622231866,-254.70254848,0.00015,2]
[357043890,1743622231904,-671.11715656,0.00015,2]
[357044076,1743622239703,-257.2366407,0.00015,2]
[357044077,1743622239966,-33764.52406303,0.00015,2]
[357044087,1743622243405,-217849.20145065,0.00015,2]
[357044088,1743622243554,-286575.64954935,0.00015,2]
[357044089,1743622244858,-3285.24129602,0.00015,2]
[357044091,1743622245467,-974.03873398,0.00015,2]
[357044096,1743622305105,-153.90742366,0.000149,2]
[357044097,1743622347972,-19.02153811,0.000149,2]
[357044098,1743622347995,-132.66906189,0.000149,2]
[357044099,1743622368255,-150.0,0.00014873,2]
[357044114,1743622479652,-150.0,0.00014899,2]
[357044115,1743622563143,-224.38854597,0.00014899,2]
[357044116,1743622587793,243.19125951,0.000148,2]
[357044117,1743622624503,222.73933878,0.0003468,30]
[357044119,1743622684678,-150.0,0.00014899,2]
[357044120,1743622710228,353.176,0.000147,2]
[357044121,1743622713034,-110.0,0.00014899,2]
[357044122,1743622713063,-250.0,0.000149,2]
[357044123,1743622713091,-2637.24838219,0.000149,2]
[357044124,1743622713122,-3083.29496529,0.000149,2]
[357044125,1743622713161,-151.6824,0.00014999,2]
[357044126,1743622713190,-153.90742366,0.00014999,2]
[357044127,1743622713218,-179.8895,0.00014999,2]
[357044128,1743622713244,-151.6906,0.00014999,2]
[357044129,1743622713271,-150.0,0.00014999,2]
[357044130,1743622713301,-3532.28672886,0.00015,2]
[357044133,1743622886561,178.70114,0.0002227,28]
[357044134,1743622946930,-150.7605137,0.00014899,2]
[357044135,1743623057478,-150.0,0.00014899,2]
[357044143,1743623120799,-73.62803227,0.00014899,2]
[357044144,1743623120823,-872.69406773,0.000149,2]
[357044145,1743623233105,-2774.96546877,0.000149,2]
[357044146,1743623233126,-300.0,0.00014999,2]
[357044147,1743623233147,-150.0,0.00014999,2]
[357044148,1743623233167,-518.92472965,0.00014999,2]
[357044149,1743623233187,-558.80023153,0.00014999,2]
[357044150,1743623233208,-500.0,0.00014999,2]
[357044151,1743623233228,-300.0,0.00014999,2]
[357044152,1743623233251,-8709.56122932,0.00015,2]
[357044153,1743623234154,-1086.47419572,0.00015,2]
[357044154,1743623239104,-265.51908888,0.00015,2]
[357044155,1743623248083,-831.56939165,0.00015,2]
[357044156,1743623266954,-2761.9828,0.00015,2]
[357044157,1743623346079,-223.86777217,0.000149,2]
[357044158,1743623346103,-752.68961257,0.000149,2]
[357044159,1743623347111,-1652.96668032,0.000149,2]
[357044160,1743623347132,-150.0,0.00014999,2]
[357044161,1743623347154,-300.0,0.00014999,2]
[357044162,1743623347179,-2417.57545768,0.00015,2]
[357044166,1743623431822,-29.50212095,0.000149,2]
[357044177,1743623437555,-120.49787905,0.000149,2]
[357044178,1743623437566,-175.22449707,0.000149,2]
[357044179,1743623437575,-223.86777217,0.000149,2]
[357044180,1743623437585,-300.0,0.00014999,2]
[357044181,1743623437595,-1134.00496763,0.00015,2]
[357044182,1743623437859,-1534.69463864,0.00015,2]
[357044183,1743623437872,-494.01,0.00015,2]
[357044184,1743623437883,-1739.0814275,0.00015,2]
[357044186,1743623437900,-3943.37908691,0.00015,2]
[357044188,1743623438052,-9715.765025,0.00015,2]
[357044189,1743623438064,-814.23873016,0.00015,2]
[357044190,1743623438079,-750.73795033,0.00015,2]
[357044193,1743623439717,-2059.125474,0.00015,2]
[357044194,1743623439922,-3007567.35932859,0.00015,2]
[357044195,1743623439934,-21205.82066571,0.00015,2]
[357044196,1743623439946,-32675.22643819,0.00015,2]
[357044197,1743623440129,-401.68486785,0.00015,2]
[357044198,1743623440150,-21607.49734644,0.00015,2]
[357044210,1743623442659,-1457.86285409,0.00015,2]
[357044211,1743623442672,-276.29565446,0.00015,2]
[357044212,1743623442683,-709.00241687,0.00015,2]
[357044213,1743623442695,-455.37695136,0.00015,2]
[357044219,1743623444141,-331.68071319,0.00015,2]
[357044220,1743623444154,-3846.78455,0.00015,2]
[357044221,1743623444171,-905.88850163,0.00015,2]
[357044225,1743623445775,-313877.29798254,0.00015,2]
[357044226,1743623445786,-403419.38824972,0.00015,2]
[357044227,1743623445800,-8030.87102762,0.00015302,2]
[357044228,1743623445810,-4750.0987179,0.00015902,2]
[357044229,1743623445820,-12283.1444829,0.00016013,2]
[357044230,1743623445831,-255.0,0.00016124,2]
[357044231,1743623445841,-250.0,0.0001639,2]
[357044232,1743623445850,-250.0,0.0001639,2]
[357044233,1743623445860,-420.0,0.00016416,2]
[357044234,1743623445871,-166.31065999,0.0001648,2]
[357044235,1743623445880,-250.0,0.000165,2]
[357044236,1743623445890,-500.0,0.0001697,2]
[357044237,1743623445900,-500.0,0.00017245,2]
[357044238,1743623445910,-433.0,0.00017339,2]
[357044239,1743623445920,-941.66,0.00017661,2]
[357044240,1743623445930,-419.0,0.00017966,2]
[357044241,1743623445940,-2774.96546873,0.0001862,2]
[357044242,1743623445950,-2405.65629289,0.0001862,2]
[357044243,1743623445959,-516.0,0.00018629,2]
[357044244,1743623445969,-1150.79154778,0.00018857,2]
[357044245,1743623445979,-185.87703049,0.00019,2]
[357044246,1743623445989,-7219.88431996,0.00019,2]
[357044247,1743623445999,-225.00909071,0.00019,2]
[357044248,1743623446008,-150.0,0.00019695,7]
[357044249,1743623446018,-941.66,0.00019925,2]
[357044251,1743623446028,-2286.30207303,0.00019999,2]
[357044252,1743623446038,-7031.43913776,0.0002,2]
[357044253,1743623446047,-1972.10072497,0.0002,2]
[357044254,1743623446057,-1476.97258188,0.0002,2]
[357044255,1743623446068,-4286.51333272,0.0002,2]
[357044257,1743623446078,-152.91151117,0.0002,5]
[357044258,1743623446088,-32089.43880395,0.0002,2]
[357044259,1743623446098,-151.38,0.0002,2]
[357044260,1743623446108,-151.38,0.0002,2]
[357044261,1743623446118,-151.38,0.0002,2]
[357044262,1743623446127,-151.38,0.0002,2]
[357044263,1743623446137,-151.38,0.0002,2]
[357044264,1743623446146,-151.38,0.0002,2]
[357044265,1743623446157,-742.73,0.00020145,2]
[357044266,1743623446167,-3246.16044351,0.00020145,2]
[357044267,1743623446180,-954.90499374,0.00020145,2]
[357044268,1743623446278,-1773.58456275,0.00020145,2]
[357044269,1743623446287,-187.16,0.00020523,2]
[357044270,1743623446297,-172.92896177,0.00020733,2]
[357044271,1743623446307,-308.76,0.00021286,3]
[357044272,1743623446317,-250.0,0.00021651,2]
[357044273,1743623446326,-314.08,0.00021651,2]
[357044274,1743623446336,-23900.0,0.00021687,2]
[357044275,1743623446346,-1000.0,0.00022113,2]
[357044276,1743623446355,-941.66,0.00022189,2]
[357044277,1743623446365,-2774.96546873,0.0002234,2]
[357044278,1743623446375,-2405.65629289,0.0002234,2]
[357044279,1743623446385,-500.0,0.00022449,2]
[357044280,1743623446395,-155.68,0.00023836,2]
[357044281,1743623446404,-17.81011442,0.00024452,2]
[357044301,1743624405145,-181.1267899,0.00023887,2]
[357044302,1743624405171,-250.0,0.00023987,2]
[357044303,1743624405192,-250.0,0.0002408,2]
[357044304,1743624405216,-128.41294835,0.00024098,2]
[357044305,1743624450166,-931.3827826,0.00023977,2]
[357044308,1743624568110,-1290.293648,0.00023977,2]
[357044309,1743624568134,-371.58705165,0.00024098,2]
[357044310,1743624568155,-500.0,0.00024098,2]
[357044311,1743624568176,-357.85686007,0.00024098,2]
[357044312,1743624568196,-250.0,0.00024335,2]
[357044313,1743624568219,-1422.78859825,0.00024556,2]
[357044314,1743624572158,-3417.82675485,0.00024556,2]
[357044315,1743624572181,-6751.97000726,0.00024556,2]
[357044322,1743624631949,-593.60558623,0.00024556,2]
[357044323,1743624632054,-5171.63326891,0.00024556,2]
[357044324,1743624632063,-250.0,0.0002535,2]
[357044325,1743624632073,-350.0,0.00026144,12]
[357044326,1743624632082,-383.83483289,0.00026307,2]
[357044327,1743624632091,-350.0,0.00026374,30]
[357044328,1743624632101,-697.39347896,0.000264,2]
[357044329,1743624632111,-350.0,0.00026507,12]
[357044330,1743624632120,-250.0,0.00026507,2]
[357044331,1743624632130,-300.0,0.00026848,2]
[357044332,1743624632141,-200.0,0.00026848,15]
[357044333,1743624632152,-302.2,0.00026849,2]
[357044334,1743624632162,-158.53,0.00026849,2]
[357044335,1743624632171,-210.57,0.00026849,2]
[357044336,1743624632182,-250.0,0.00027,2]
[357044337,1743624632192,-250.0,0.00027012,2]
[357044338,1743624632201,-365.0,0.000274,2]
[357044339,1743624632211,-282.541,0.00028457,19]
[357044341,1743624632221,-300.0,0.00029,2]
[357044343,1743624632231,-2012.8669137,0.0003,2]
[357044345,1743624632240,-250.0,0.00030623,2]
[357044347,1743624632250,-350.0,0.00031,2]
[357044348,1743624632259,-861.44,0.00031048,2]
[357044361,1743624632268,-155.68,0.00031466,2]
[357044364,1743624632383,-151.33,0.00032065,2]
[357044366,1743624632393,-19802.85619754,0.00032305,2]
[357044368,1743624632403,-302.2,0.00032646,2]
[357044370,1743624632412,-314.08,0.00032787,2]
[357044372,1743624632422,-365.24541371,0.000329,2]
[357044374,1743624632431,-400.0,0.00033,2]
[357044376,1743624632442,-155.61,0.00033143,120]
[357044378,1743624632451,-861.44,0.00033311,2]
[357044380,1743624632460,-1164.07277116,0.000335,2]
[357044382,1743624632469,-23900.0,0.00033506,2]
[357044384,1743624632479,-158.53,0.00033733,2]
[357044386,1743624632488,-174.85,0.00033746,2]
[357044388,1743624632497,-150.0,0.00033935,7]
[357044390,1743624632507,-250.0,0.00034247,2]
[357044392,1743624632516,-1000.0,0.00034247,2]
[357044394,1743624632525,-3395.30125426,0.00034675,7]
[357044396,1743624632534,-2337.41844428,0.00034675,2]
[357044397,1743624632543,-1029.50400429,0.00034675,7]
[357044399,1743624632552,-461.67862877,0.00034675,7]
[357044401,1743624632561,-5036.88291378,0.00034675,7]
[357044403,1743624632570,-1489.06351071,0.00034675,7]
[357044405,1743624632579,-200.0,0.0003468,2]
[357044407,1743624632588,-10000.0,0.00034681,30]
[357044409,1743624632596,-3445.83364792,0.000348,2]
[357044411,1743624632605,-153.44608311,0.00035,120]
[357044413,1743624632617,-247.32882833,0.00035,120]
[357044415,1743624632627,-788.41479848,0.00035,2]
[357044417,1743624632642,-1451.53771829,0.00035,2]
[357044419,1743624632651,-5031.84085725,0.00035,40]
[357044421,1743624632659,-166.46,0.00035,2]
[357044423,1743624632669,-450.0,0.00035,2]
[357044425,1743624632678,-861.44,0.00035575,2]
[357044427,1743624632688,-150.4,0.00035616,2]
[357044429,1743624632697,-12747.20411894,0.00036,7]
[357044433,1743624632721,-17750.92633532,0.00036,7]
[357044746,1743624637804,-6226.01782728,0.00036,7]
[357044747,1743624637857,-22135.82058951,0.00036,7]
[357044748,1743624637867,-1942.47582812,0.000369,2]
[357044749,1743624637879,-500.0,0.00037,2]
[357044750,1743624637888,-214.21302257,0.000372,103]
[357044751,1743624637897,-861.44,0.00037839,2]
[357044752,1743624637907,-1942.47582811,0.00038211,2]
[357044753,1743624637916,-302.2,0.00038443,2]
[357044754,1743624637926,-1000.0,0.00038528,2]
[357044755,1743624637936,-155.61,0.00038616,120]
[357044756,1743624637950,-13000.0,0.00039,7]
[357044757,1743624637959,-550.0,0.00039,2]
[357044758,1743624637969,-1942.47582811,0.00039522,2]
[357044759,1743624637978,-774.85521724,0.0004,5]
[357044760,1743624637987,-702.32690114,0.0004,30]
[357044761,1743624637997,-56.94973408,0.00040103,2]
[357044762,1743624638013,-804.49026592,0.00040103,2]
[357044763,1743624638023,-174.85,0.00040495,2]
[357044764,1743624638032,-158.53,0.00040616,2]
[357044765,1743624638042,-361.79471791,0.00040833,15]
[357044766,1743624638054,-1580.6811102,0.00040833,15]
[357044767,1743624638064,-939.0,0.00041096,13]
[357044768,1743624638073,-747.05118151,0.00041937,7]
[357044769,1743624638082,-343.9153688,0.00042,120]
[357044770,1743624638092,-1942.47582811,0.00042144,15]
[357044771,1743624638102,-861.44,0.00042367,2]
[357044772,1743624638111,-1000.0,0.00042809,2]
[357044773,1743624638120,-151.0,0.00043335,2]
[357044774,1743624638129,-3077.388,0.00043335,2]
[357044775,1743624638139,-1118.0,0.00043335,2]
[357044776,1743624638149,-1065.0,0.0004337,30]
[357044777,1743624638159,-1465.86950879,0.00043456,15]
[357044778,1743624638170,-476.60631932,0.00043456,15]
[357044779,1743624638179,-221.0,0.00043999,2]
[357044780,1743624638188,-839.87718342,0.00044,3]
[357044788,1743624640263,-3397.4849395,0.00044,3]
[357044789,1743624640274,-456.86,0.00044,3]
[357045030,1743624644027,-89.94885985,0.000251,2]
[357045050,1743625514619,33514.4913966,0.00034675,30]
[357045051,1743625561651,350.0,0.00014962,12]
[357045053,1743625625258,-537.025006,0.00014925,2]
[357045054,1743625625281,-300.0,0.00014999,2]
[357045055,1743625625305,-150.0,0.00014999,2]
[357045056,1743625625330,-1279.03838808,0.00015,2]
[357045057,1743625632772,200.0,0.000146,5]
[357045058,1743625634894,500.0,0.000147,5]
[357045059,1743625637024,800.0,0.000148,5]
[357045060,1743625639154,1100.0,0.000149,5]
[357045061,1743625646149,-186.93717603,0.00015,2]
[357045066,1743625725007,10945.75,0.000205,120]
[357045072,1743625767103,-343.66472369,0.000149,2]
[357045073,1743625767125,-160.87229059,0.000149,2]
[357045074,1743625767147,-425.17943861,0.000149,2]
[357045075,1743625767168,-152.94080743,0.00014973,2]
[357045076,1743625767188,-163.95839373,0.00014973,2]
[357045077,1743625767208,-500.0,0.00014973,2]
[357045078,1743625767229,-319.05841768,0.00014973,2]
[357045079,1743625767250,-201.0,0.00014999,2]
[357045080,1743625767278,-2253.87541627,0.00015,2]
[357045105,1743625831977,-1103.55713475,0.000149,2]
[357045108,1743625832577,-150.0,0.000149,2]
[357045109,1743625836518,-541.05884223,0.000149,2]
[357045110,1743625836654,-165.57998523,0.000149,2]
[357045111,1743625836665,-94.42001477,0.00014973,2]
[357045112,1743625836677,-66.18403972,0.00014973,2]
[357045113,1743625836687,-435.75576257,0.00014973,2]
[357045114,1743625836699,-64.24423743,0.00014973,2]
[357045115,1743625836709,-482.26619861,0.00014973,2]
[357045116,1743625836719,-181.34053378,0.00014973,2]
[357045117,1743625836728,-269.58719324,0.00014973,2]
[357045118,1743625836737,-500.0,0.00014973,2]
[357045119,1743625836747,-500.0,0.00014973,2]
[357045120,1743625836757,-150.0,0.00014999,2]
[357045121,1743625836766,-1733.60465455,0.00015,2]
[357045122,1743625836778,-2471.72225195,0.00015,2]
[357045123,1743625836819,-252.54757848,0.00015,2]
[357045124,1743625836831,-1528.17812692,0.00015,2]
[357045125,1743625836842,-291.93109593,0.00015,2]
[357045197,1743625837870,-506.23855441,0.00015,2]
[357045198,1743625837935,-16817.14038024,0.00015,2]
[357045199,1743625837947,-996.43180004,0.00015,2]
[357045200,1743625837959,-529568.11307223,0.00015,2]
[357045201,1743625838125,-20300.57619068,0.00015,2]
[357045202,1743625838188,-351.12140297,0.00015,2]
[357045203,1743625838209,-492.95,0.00015,2]
[357045204,1743625838316,-174775.5,0.00015,2]
[357045205,1743625838329,-1076.06222892,0.00015,2]
[357045206,1743625838342,-392.93134149,0.00015,2]
[357045207,1743625838354,-32982.48115901,0.00015,2]
[357045208,1743625838366,-2587.31247087,0.00015,2]
[357045210,1743625838378,-4484.586305,0.00015,2]
[357045212,1743625838390,-1290.47048802,0.00015,2]
[357045214,1743625838406,-328.7067379,0.00015,2]
[357045227,1743625843414,-19992.102375,0.00015,2]
[357045231,1743625843600,-305.89227314,0.00015,2]
[357045265,1743625843828,-43957.79076873,0.00015,2]
[357045272,1743625843874,-26487.9,0.00015,2]
[357045297,1743625845748,-1791.20092232,0.00015,2]
[357045299,1743625845769,-3181.66090932,0.00015,2]
[357045302,1743625846014,-31880.82287905,0.00015,2]
[357045303,1743625846133,-616.749,0.00015,2]
[357045304,1743625846253,-327918.86683338,0.00015,2]
[357045305,1743625846315,-15971.47264118,0.00015,2]
[357045306,1743625846327,-1585.15268009,0.00015,2]
[357045307,1743625846377,-8865.651236,0.00015,2]
[357045308,1743625846388,-605.73612358,0.00015,2]
[357045406,1743625850974,-151.0,0.000149,2]
[357045407,1743625861423,151.0,0.00014825,2]
[357045408,1743625924163,179.76952461,0.00034675,30]
[357045409,1743625927607,500.0,0.00034675,30]
[357045410,1743625928240,518.5,0.00034675,30]
[357045411,1743625928871,537.6845,0.00034675,30]
[357045412,1743625929525,557.5788265,0.00034675,30]
[357045413,1743625930199,578.20924308,0.00034675,30]
[357045414,1743625930821,-151.16351891,0.000149,2]
[357045415,1743625931282,599.60298507,0.00034675,30]
[357045416,1743625931911,621.78829552,0.00034675,30]
[357045417,1743625932595,644.79446246,0.00034675,30]
[357045418,1743625933258,668.65185757,0.00034675,30]
[357045419,1743625933936,693.3919763,0.00034675,30]
[357045420,1743625934590,719.04747942,0.00034675,30]
[357045421,1743625935222,745.65223616,0.00034675,30]
[357045422,1743625935850,773.2413689,0.00034675,30]
[357045423,1743625936486,801.85129955,0.00034675,30]
[357045424,1743625937112,801.85129955,0.00034675,30]
[357045425,1743625999795,5379.44275,0.00014825,2]
[357045426,1743626040942,350.0,0.000149,12]
[357045434,1743626147666,33431.12,0.00032,120]
[357045435,1743626225750,392.55690313,0.00034678,30]
[357045436,1743626284347,-200.0,0.000149,2]
[357045437,1743626298402,-175.5847004,0.000149,2]
[357045438,1743626310421,307.098,0.000147,2]
[357045439,1743626383932,174.48,0.00027227,120]
[357045440,1743626402495,-213.12966376,0.00014899,2]
[357045441,1743626445759,152.10659,0.0002439,33]
[357045442,1743626462155,-150.0,0.00014899,2]
[357045443,1743626488693,151.39654878,0.00015,13]
[357045444,1743626505115,184.86027225,0.000148,2]
[357045445,1743626511895,-150.0,0.00014899,2]
[357045446,1743626511920,-2.35,0.000149,2]
[357045447,1743626522829,-151.0,0.00014899,2]
[357045448,1743626531302,152.10659,0.00015,13]
[357045449,1743626544433,-149.0,0.00014899,2]
[357045450,1743626544456,-1.0,0.000149,2]
[357045451,1743626582520,-211.5580366,0.00014899,2]
[357045452,1743626641651,-164.58300598,0.000149,2]
[357045460,1743626807709,271.5,0.00034661,30]
[357045462,1743626834120,-250.0,0.000149,2]
[357045463,1743626834143,-191.39755115,0.000149,2]
[357045464,1743626834164,-173.43198993,0.000149,2]
[357045465,1743626834186,-360.18925082,0.000149,2]
[357045466,1743626836673,152.10659,0.0001735,18]
[357045467,1743626836859,152.10659,0.0001985,23]
[357045468,1743626836906,152.10659,0.0002235,28]
[357045469,1743626836946,152.10659,0.0002485,34]
[357045470,1743626837123,-299.32974918,0.000149,2]
[357045471,1743626837145,-166.89021712,0.000149,2]
[357045472,1743626837168,-2074.27063617,0.000149,2]
[357045473,1743626837192,-1776.60289318,0.000149,2]
[357045474,1743626847816,1000.0,0.00032,120]
[357045475,1743626850430,184.86027224,0.00014824,2]
[357045476,1743626852135,-3518.97948832,0.000149,2]
[357045477,1743626892975,984.62,0.00034659,30]
[357045478,1743626918746,407.0,0.00034659,120]
[357045479,1743626950167,897.34930878,0.00034659,60]
[357045480,1743627004356,1025.07629914,0.00034659,30]
[357045481,1743627004396,696.6123824,0.00034659,30]
[357045482,1743627019257,1500.0,0.00032,120]
[357045503,1743627032135,-4511.26586006,0.000149,2]
[357045505,1743627032146,-250.0,0.00014912,2]
[357045507,1743627032156,-500.0,0.00014973,2]
[357045508,1743627032165,-300.0,0.00014989,2]
[357045509,1743627032174,-22055.54586477,0.0001499,2]
[357045510,1743627032183,-160.30560283,0.00014999,2]
[357045511,1743627032193,-320.95640838,0.00014999,2]
[357045512,1743627032203,-528.19555797,0.00014999,2]
[357045513,1743627032212,-966.35,0.00014999,2]
[357045514,1743627032221,-3562.67352271,0.00015,2]
[357045515,1743627032233,-428.05826247,0.00015,2]
[357045516,1743627032244,-457.841235,0.00015,2]
[357045517,1743627032259,-13708.00145605,0.00015,2]
[357045518,1743627032308,-89501.03236399,0.00015,2]
[357045519,1743627032368,-1108.58868165,0.00015,2]
[357045531,1743627038034,-1631.0,0.00015,2]
[357045532,1743627038046,-3247.9926316,0.00015,2]
[357045533,1743627038056,-638.47543266,0.00015,2]
[357045534,1743627038069,-1251.48626259,0.00015,2]
[357045535,1743627038080,-1274.17057074,0.00015,2]
[357045536,1743627038091,-325.99156457,0.00015,2]
[357045537,1743627038101,-2025.44595638,0.00015,2]
[357045538,1743627038111,-11297.65519315,0.00015,2]
[357045539,1743627038125,-773.66300001,0.00015,2]
[357045540,1743627038164,-8585.2,0.00015,2]
[357045541,1743627038175,-529568.11307223,0.00015,2]
[357045542,1743627038186,-2313.95,0.00015,2]
[357045543,1743627038219,-855.47609971,0.00015,2]
[357045544,1743627038230,-482.3108963,0.00015,2]
[357045545,1743627038275,-296.32204755,0.00015,2]
[357045546,1743627038334,-354.60144798,0.00015,2]
[357045547,1743627038345,-13460.12919163,0.00015,2]
[357045548,1743627038357,-258.44,0.00015,2]
[357045586,1743627040482,-0.00583288,0.00015,2]
[357045592,1743627045538,-294.310698,0.00015,2]
[357045602,1743627045655,-256.0932,0.00015,2]
[357045604,1743627045717,-854.138,0.00015,2]
[357045605,1743627045779,-3324.09407658,0.00015,2]
[357045606,1743627045791,-575020.12107114,0.00015,2]
[357045623,1743627047063,-262.96634427,0.00015,2]
[357045624,1743627047157,-92.91855005,0.00015,2]
[357045625,1743627047169,-785.00813096,0.00015,2]
[357045626,1743627047180,-879.51107187,0.00015,2]
[357045627,1743627047191,-15802.24486754,0.00015,2]
[357045628,1743627047217,-92741.78330951,0.00015,2]
[357045629,1743627047229,-1712.8111,0.00015,2]
[357045630,1743627047255,-42754.6374,0.00015,2]
[357045647,1743627065266,-300.0,0.00014999,2]
[357045648,1743627119936,-224.6051,0.000149,2]
[357045649,1743627122830,-300.0,0.00014999,2]
[357045650,1743627123573,209.40437684,0.00034659,30]
[357045651,1743627151950,-518.92472965,0.00014999,2]
[357045652,1743627160554,-255.17549216,0.000149,2]
[357045653,1743627184568,-300.0,0.00014999,2]
[357045654,1743627187179,-200.0,0.00014999,2]
[357045655,1743627201429,-663.27747819,0.000149,2]
[357045656,1743627243640,-150.0,0.000149,2]
[357045657,1743627245205,-239.87194988,0.000149,2]
[357045658,1743627245226,-11.81291797,0.000149,2]
[357045659,1743627393094,-161.2700506,0.00014899,2]
[357045661,1743627423232,-150.0,0.00014899,2]
[357045665,1743627483297,-150.0,0.00014899,2]
[357045666,1743627604794,-97.53018093,0.00014899,2]
[357045667,1743627604819,-52.46981907,0.00014899,2]
[357045668,1743627654786,323.6262,0.000148,2]
[357045669,1743627654813,17641.4362,0.000148,2]
[357045670,1743627657361,-166.47560564,0.00014899,2]
[357045671,1743627657384,-150.0,0.00014899,2]
[357045672,1743627657406,-213.52439436,0.000149,2]
[357045673,1743627661859,-150.0,0.00014899,2]
[357045674,1743627688151,-150.0,0.00014899,2]
[357045675,1743627688182,-18.48,0.00014899,2]
[357045676,1743627722039,-202.59119274,0.00014899,2]
[357045677,1743627777747,816.16809183,0.00034646,30]
[357045678,1743627783513,202.59119274,0.000148,2]
[357045679,1743627787288,165.96,0.00027533,120]
[357045681,1743627903150,-150.0,0.0001489,2]
[357045682,1743627903177,-31.1410884,0.00014899,2]
[357045683,1743627917515,1106.617139,0.00034646,120]
[357045684,1743627920590,931.382783,0.00014824,2]
[357045686,1743627962491,-169.29151886,0.00014899,2]
[357045687,1743627962515,-18.9457924,0.00014899,2]
[357045688,1743628023765,209.40437684,0.00034646,30]
[357045689,1743628023894,151.75157,0.00015,13]
[357045690,1743628029275,-150.0,0.00014899,2]
[357045691,1743628029299,-538.30598767,0.000149,2]
[357045692,1743628029321,-243.0862015,0.000149,2]
[357045693,1743628035118,-2357.37061098,0.000149,2]
[357045694,1743628042111,-976.41365955,0.000149,2]
[357045695,1743628053144,-3316.97232797,0.000149,2]
[357045696,1743628053168,-511.1032607,0.000149,2]
[357045697,1743628099684,-8303.69985514,0.000149,2]
[357045698,1743628099722,-8303.69985514,0.000149,2]
[357045699,1743628099767,-8303.69985514,0.000149,2]
[357045700,1743628099813,-8303.69985514,0.000149,2]
[357045701,1743628099859,-8303.69985514,0.000149,2]
[357045702,1743628099921,-8303.69985514,0.000149,2]
[357045703,1743628099993,-5632.74980846,0.000149,2]
[357045704,1743628100025,-631.6895,0.000149,2]
[357045705,1743628100057,-810.6043,0.000149,2]
[357045706,1743628100087,-1228.65624668,0.000149,2]
[357045707,1743628100125,-265.99745332,0.000149,2]
[357045708,1743628100260,-697.6243,0.000149,2]
[357045709,1743628100292,-2187.54291711,0.000149,2]
[357045710,1743628100320,-403.3833,0.000149,2]
[357045711,1743628100348,-4749.15188471,0.000149,2]
[357045712,1743628100381,-8303.69985514,0.000149,2]
[357045713,1743628100414,-8303.69985514,0.000149,2]
[357045714,1743628100458,-57.08480501,0.000149,2]
[357045715,1743628100486,-1581.4634,0.000149,2]
[357045716,1743628100516,-2240.30427363,0.000149,2]
[357045717,1743628100550,-6667.1473894,0.000149,2]